bitfinex/quotes_SOLUSD_20241007
["timestamp","ask_amount","ask_price","bid_price","bid_amount"]
[1728342571663,52.62292281,144.58,144.54,6.9185]
[1728342571846,23.776884,144.56,144.51,24.219]
[1728342572167,52.62292281,144.58,144.51,24.219]
[1728342572168,52.62292281,144.58,144.51,17.2991]
[1728342572656,59.53852281,144.61,144.55,6.9179]
[1728342572859,52.62292281,144.61,144.56,6.9173]
[1728342573065,6.6046,144.62,144.58,6.9162]
[1728342573234,13.5193,144.62,144.55,6.9175]
[1728342573435,52.62292281,144.61,144.55,6.9175]
[1728342573667,52.62292281,144.61,144.56,6.9171]
[1728342573870,52.62292281,144.61,144.55,6.9178]
[1728342573871,59.53812281,144.61,144.55,6.9178]
[1728342574173,52.62292281,144.61,144.54,17.296]
[1728342574337,52.62292281,144.58,144.51,25.88869323]
[1728342574661,52.62292281,144.55,144.51,17.2997]
[1728342574863,6.9189,144.53,144.48,24.224]
[1728342575440,6.9189,144.53,144.48,24.2242]
[1728342575652,52.62292281,144.55,144.5,17.3003]
[1728342575856,24.027864,144.55,144.5,24.2206]
[1728342576046,52.62292281,144.55,144.5,17.3003]
[1728342576251,52.62292281,144.55,144.52,6.9193]
[1728342576571,20.0,144.57,144.54,6.9185]
[1728342576868,20.0,144.57,144.53,17.297]
[1728342577240,6.9157,144.6,144.55,6.9176]
[1728342577440,6.9177,144.56,144.51,6.9197]
[1728342577670,6.9183,144.55,144.5,17.3007]
[1728342577852,52.62292281,144.54,144.47,24.2254]
[1728342578051,20.0,144.53,144.48,36.9212]
[1728342578367,17.2935,144.57,144.52,6.9193]
[1728342578368,20.0,144.56,144.52,6.9193]
[1728342578575,20.0,144.56,144.47,50.0]
[1728342578869,26.9179,144.56,144.51,24.219]
[1728342579368,20.0,144.56,144.53,6.9185]
[1728342579950,20.0,144.56,144.54,6.9184]
[1728342581163,20.0,144.56,144.53,6.9188]
[1728342581755,20.0,144.56,144.47,59.62982156]
[1728342581756,6.9186,144.54,144.49,6.9207]
[1728342581962,23.776884,144.53,144.49,6.9207]
[1728342582165,23.776884,144.53,144.47,25.89468197]
[1728342582351,6.92,144.51,144.46,6.9221]
[1728342582555,52.62292281,144.51,144.47,30.0]
[1728342582770,0.12549,144.5,144.44,17.3074]
[1728342582957,52.62292281,144.51,144.45,1.38443626]
[1728342583166,20.25098,144.53,144.46,6.9221]
[1728342583483,20.25098,144.53,144.44,17.3074]
[1728342583484,30.697284,144.5,144.45,6.9227]
[1728342584291,30.697284,144.5,144.41,85.66027534]
[1728342584292,52.62292281,144.52,144.46,17.3047]
[1728342584654,6.919,144.53,144.48,6.9213]
[1728342584976,52.62292281,144.49,144.38,84.6304]
[1728342585181,52.62292281,144.49,144.42,50.0]
[1728342585395,23.776884,144.49,144.4,50.0]
[1728342585671,6.9213,144.49,144.4,50.0]
[1728342585877,6.9213,144.48,144.4,50.0]
[1728342586169,20.0,144.5,144.44,17.3078]
[1728342586345,30.698084,144.49,144.44,24.231]
[1728342586552,0.25098,144.48,144.42,6.9237]
[1728342586752,26.9213,144.48,144.4,58.59600008]
[1728342586951,20.0,144.48,144.44,6.9231]
[1728342587147,20.0,144.48,144.42,17.3102]
[1728342587389,26.9215,144.48,144.44,6.9232]
[1728342587564,52.62292281,144.49,144.46,6.9221]
[1728342587773,20.0,144.5,144.44,0.1455262]
[1728342588073,26.9204,144.5,144.46,17.3054]
[1728342588276,23.0872,144.51,144.48,6.9213]
[1728342588876,16.6206,144.51,144.49,1.38410913]
[1728342589062,16.6206,144.51,144.44,8.73855407]
[1728342589795,16.6206,144.51,144.45,50.0]
[1728342590082,52.62292281,144.55,144.5,6.9204]
[1728342590389,52.62292281,144.55,144.51,17.2991]
[1728342590756,52.62292281,144.55,144.53,6.9188]
[1728342590958,6.575,144.57,144.51,17.2991]
[1728342591259,15.6511,144.58,144.51,50.0]
[1728342591559,15.6511,144.58,144.57,6.917]
[1728342592468,15.6511,144.58,144.56,6.9174]
[1728342593488,15.6511,144.58,144.55,24.2121]
[1728342593671,15.6511,144.58,144.56,6.9174]
[1728342594165,15.6511,144.58,144.57,6.917]
[1728342594480,15.6511,144.58,144.55,24.212]
[1728342594688,15.6511,144.58,144.55,17.2944]
[1728342594981,52.62292281,144.67,144.55,34.5896]
[1728342595164,52.62292281,144.61,144.56,47.2932]
[1728342595484,52.62292281,144.61,144.57,6.9169]
[1728342595655,52.62292281,144.61,144.53,1.03812641]
[1728342595855,52.62292281,144.61,144.59,6.9158]
[1728342596075,52.62292281,144.61,144.6,6.9156]
[1728342596283,52.62292281,144.61,144.58,17.2908]
[1728342596458,52.62292281,144.61,144.58,24.2073]
[1728342596778,59.53832281,144.61,144.57,6.917]
[1728342596972,52.62292281,144.61,144.57,6.917]
[1728342598765,52.62292281,144.61,144.58,6.9162]
[1728342599462,6.9137,144.64,144.61,17.2871]
[1728342599463,20.0,144.63,144.61,17.2871]
[1728342599657,20.0,144.63,144.6,6.9156]
[1728342599855,20.0,144.63,144.62,6.9146]
[1728342600287,20.0,144.63,144.61,6.9151]
[1728342600606,20.0,144.63,144.62,6.9146]
[1728342600893,52.62292281,144.67,144.64,6.9133]
[1728342601061,52.62292281,144.67,144.64,17.2832]
[1728342601260,52.62292281,144.67,144.65,6.9131]
[1728342601456,52.62292281,144.7,144.66,6.9127]
[1728342601958,6.9113,144.69,144.64,17.2832]
[1728342602185,15.4052,144.71,144.64,17.2832]
[1728342602186,52.62292281,144.67,144.64,24.1967]
[1728342602381,52.62292281,144.67,144.64,17.2832]
[1728342602598,52.62292281,144.67,144.58,34.5805]
[1728342602599,6.9128,144.66,144.61,17.2872]
[1728342602794,52.62292281,144.64,144.62,6.9146]
[1728342603190,15.4052,144.71,144.59,50.0]
[1728342603507,15.4052,144.71,144.67,17.2797]
[1728342603800,15.4052,144.71,144.67,24.1919]
[1728342604009,15.4052,144.71,144.69,6.9113]
[1728342604179,15.4052,144.71,144.7,6.9108]
[1728342604807,15.4052,144.71,144.69,17.2777]
[1728342605010,15.4052,144.71,144.69,24.1889]
[1728342605222,15.4052,144.71,144.7,6.9108]
[1728342605385,59.13372281,144.76,144.73,6.909]
[1728342605703,59.13372281,144.76,144.72,17.2739]
[1728342605882,59.13372281,144.76,144.74,6.9087]
[1728342606215,15.8394,144.77,144.76,6.9079]
[1728342606391,6.548,144.82,144.79,6.9063]
[1728342606585,17.9277059,144.89,144.78,17.267]
[1728342606890,52.62292281,144.8,144.75,17.2708]
[1728342607105,52.62292281,144.8,144.75,24.1788]
[1728342607317,52.62292281,144.8,144.78,17.2674]
[1728342607607,15.649,144.86,144.76,34.5392]
[1728342607812,15.649,144.86,144.81,17.2638]
[1728342608112,52.62292281,144.84,144.81,24.1693]
[1728342608312,52.62292281,144.84,144.81,17.2638]
[1728342608492,59.52702281,144.84,144.77,17.2683]
[1728342608693,52.62292281,144.81,144.8,6.906]
[1728342608899,52.62292281,144.84,144.8,17.2648]
[1728342609100,15.649,144.86,144.84,17.2599]
[1728342609407,15.649,144.86,144.83,6.9046]
[1728342609990,15.649,144.86,144.84,6.9037]
[1728342610410,15.649,144.86,144.85,6.9036]
[1728342610992,15.649,144.86,144.78,17.2667]
[1728342611182,52.62292281,144.82,144.79,6.9065]
[1728342611383,20.0,144.87,144.85,6.9035]
[1728342611809,20.0,144.87,144.84,17.2601]
[1728342611986,52.62292281,144.85,144.8,24.17]
[1728342612194,26.9041,144.84,144.79,6.9064]
[1728342612598,26.9041,144.84,144.77,17.2685]
[1728342612599,24.027864,144.83,144.77,17.2685]
[1728342612797,24.027864,144.83,144.78,6.9069]
[1728342612984,24.027864,144.83,144.79,6.9064]
[1728342613442,30.933464,144.81,144.77,17.2685]
[1728342613624,24.027864,144.79,144.75,6.9083]
[1728342613907,76.65078681,144.79,144.74,24.181]
[1728342614116,24.027864,144.79,144.75,6.9084]
[1728342614418,23.776884,144.79,144.77,17.2682]
[1728342614585,23.776884,144.79,144.75,6.9083]
[1728342614790,23.776884,144.79,144.76,6.9075]
[1728342615090,0.12549,144.78,144.75,6.9083]
[1728342615390,0.25098,144.78,144.76,6.9079]
[1728342615701,23.776884,144.79,144.77,6.9075]
[1728342616104,15.4713,144.8,144.79,6.9065]
[1728342616716,15.4713,144.8,144.73,8.57624184]
[1728342616717,20.0,144.79,144.73,17.2735]
[1728342617016,26.9066,144.79,144.73,17.2735]
[1728342617237,26.9066,144.79,144.74,6.9089]
[1728342617404,0.25098,144.78,144.75,6.9084]
[1728342617804,20.0,144.79,144.75,17.2702]
[1728342618204,35.4713,144.8,144.79,6.9065]
[1728342618526,15.4713,144.8,144.79,6.9065]
[1728342619125,6.6026,144.82,144.8,6.9057]
[1728342620139,20.0,144.85,144.82,6.9049]
[1728342620306,15.3904,144.86,144.83,6.9042]
[1728342620510,15.3904,144.86,144.82,17.2619]
[1728342620722,15.3904,144.86,144.82,24.1669]
[1728342622016,15.3904,144.86,144.82,17.2619]
[1728342622217,15.3904,144.86,144.84,6.9039]
[1728342622428,15.3904,144.86,144.82,17.2619]
[1728342622743,22.2936,144.86,144.81,6.9055]
[1728342622908,15.3904,144.86,144.79,17.2659]
[1728342623109,22.2937,144.86,144.81,6.9055]
[1728342623325,22.2937,144.86,144.8,6.906]
[1728342623326,7.02919,144.85,144.8,6.906]
[1728342623912,7.02919,144.85,144.81,6.9055]
[1728342623913,0.12549,144.85,144.81,6.9055]
[1728342624431,0.12549,144.85,144.82,6.905]
[1728342625314,15.3904,144.86,144.8,84.5302]
[1728342625517,15.3904,144.86,144.85,6.9036]
[1728342626642,15.3904,144.86,144.83,17.2608]
[1728342626850,0.12549,144.85,144.81,6.9054]
[1728342627012,15.3904,144.86,144.82,17.2621]
[1728342627525,0.12549,144.85,144.82,17.2621]
[1728342627842,0.12549,144.85,144.82,24.1671]
[1728342628337,0.12549,144.83,144.79,24.172]
[1728342628517,0.25098,144.83,144.79,24.172]
[1728342628715,7.15558,144.83,144.79,17.2659]
[1728342629537,7.15568,144.83,144.79,17.2659]
[1728342629842,22.2937,144.86,144.81,6.9055]
[1728342630030,0.12549,144.85,144.81,6.9055]
[1728342630739,0.12549,144.85,144.79,17.2659]
[1728342630927,6.9041,144.84,144.8,6.9059]
[1728342631118,7.02969,144.84,144.79,24.1723]
[1728342631318,0.12549,144.84,144.8,6.906]
[1728342631611,0.12549,144.84,144.79,17.2659]
[1728342631839,0.12549,144.84,144.81,6.9055]
[1728342633340,15.3904,144.86,144.85,6.9036]
[1728342633842,15.3904,144.86,144.84,6.904]
[1728342634023,7.5752059,144.89,144.79,34.5303]
[1728342634024,0.6733059,144.89,144.79,34.5303]
[1728342634222,0.6733059,144.89,144.86,17.2579]
[1728342635039,0.6733059,144.89,144.88,6.9022]
[1728342637218,0.6733059,144.89,144.88,36.9022]
[1728342637433,0.6733059,144.89,144.88,30.0]
[1728342637743,0.6733059,144.89,144.88,36.9022]
[1728342637947,0.6733059,144.89,144.88,6.9022]
[1728342639520,0.6733059,144.89,144.88,56.9022]
[1728342639936,0.6733059,144.89,144.88,108.40764459]
[1728342640137,0.6733059,144.89,144.88,106.9022]
[1728342640427,0.6733059,144.89,144.88,56.9022]
[1728342640627,0.6733059,144.89,144.88,36.9022]
[1728342640828,0.6733059,144.89,144.88,30.0]
[1728342641055,0.6733059,144.89,144.88,36.9022]
[1728342641936,0.6733059,144.89,144.88,6.9022]
[1728342642546,0.6733059,144.89,144.86,17.2579]
[1728342643483,0.6733059,144.89,144.88,6.9022]
[1728342644539,0.6733059,144.89,144.88,77.15318]
[1728342645330,0.6733059,144.89,144.88,100.930064]
[1728342645530,0.6733059,144.89,144.88,130.930064]
[1728342645839,5.9e-06,144.89,144.88,130.930064]
[1728342647066,5.9e-06,144.89,144.88,108.06330722]
[1728342647548,5.9e-06,144.89,144.88,109.56858775]
[1728342647852,5.9e-06,144.89,144.88,108.18879722]
[1728342648057,5.9e-06,144.89,144.88,133.34542452]
[1728342648235,5.9e-06,144.89,144.88,131.96568122]
[1728342648829,53.44175491,145.04,144.88,131.96568122]
[1728342648830,0.8188321,145.04,144.97,50.0]
[1728342649045,0.8188321,145.04,145.01,6.896]
[1728342649242,0.8188321,145.04,145.03,6.8951]
[1728342649538,0.8188321,145.04,145.01,6.896]
[1728342649741,0.8188321,145.04,145.02,6.8955]
[1728342650037,0.8188321,145.04,145.0,24.137]
[1728342650244,6.8951,145.03,144.98,6.897]
[1728342650557,6.8954,145.03,144.97,36.8976]
[1728342650857,6.8966,145.0,144.98,30.0]
[1728342651035,6.897,144.99,144.94,6.8994]
[1728342651232,22.2644,144.99,144.88,34.5101]
[1728342651431,6.8988,144.96,144.91,6.9007]
[1728342651667,24.027864,144.98,144.92,30.0]
[1728342651832,6.8998,144.93,144.92,30.0]
[1728342652032,30.926664,144.96,144.9,6.901]
[1728342652232,6.8994,144.94,144.89,24.1548]
[1728342652650,0.8188321,145.04,144.91,50.0]
[1728342652854,0.8188321,145.04,144.93,50.0]
[1728342653055,0.8188321,145.04,144.98,24.1396]
[1728342653262,0.8188321,145.04,144.96,6.8983]
[1728342653441,6.8956,145.02,144.96,6.8983]
[1728342653759,6.8969,145.0,144.95,17.2467]
[1728342653943,6.8965,145.01,144.95,17.2467]
[1728342654141,0.8188321,145.04,144.96,1.37952903]
[1728342654439,0.8188321,145.04,145.02,6.8955]
[1728342654635,0.8188321,145.04,145.01,17.2391]
[1728342655242,0.8188321,145.04,144.98,24.141]
[1728342655445,6.8952,145.03,144.98,24.141]
[1728342656743,0.12549,145.02,144.98,17.2436]
[1728342657559,0.8188321,145.04,144.99,1.37946743]
[1728342658142,0.8188321,145.04,145.0,17.2403]
[1728342658650,0.8188321,145.04,145.0,24.1363]
[1728342658856,0.8188321,145.04,145.0,17.2403]
[1728342659068,0.8188321,145.04,145.01,6.8958]
[1728342659249,0.8188321,145.04,145.0,17.2403]
[1728342659559,0.8188321,145.04,144.98,1.37912677]
[1728342659734,0.8188321,145.04,144.99,6.8969]
[1728342659938,0.8188321,145.04,145.0,6.8964]
[1728342660344,0.8188321,145.04,145.01,6.896]
[1728342661384,0.8188321,145.04,145.03,6.8951]
[1728342661864,0.8188321,145.04,145.03,56.8951]
[1728342662243,0.8188321,145.04,145.03,58.27361865]
[1728342662745,0.8188321,145.04,145.03,56.8951]
[1728342663260,0.8188321,145.04,145.03,6.8951]
[1728342663469,0.8188321,145.04,145.03,102.3015374]
[1728342663677,0.8188321,145.04,145.03,78.3991634]
[1728342664675,0.8188321,145.04,145.03,102.1760474]
[1728342664979,0.8188321,145.04,145.03,100.922964]
[1728342665160,0.8188321,145.04,145.03,78.39885601]
[1728342665557,0.8188321,145.04,145.03,102.30123001]
[1728342665746,0.8188321,145.04,145.03,132.30123001]
[1728342666167,0.8188321,145.04,145.03,133.33582647]
[1728342666387,3.21e-05,145.04,145.03,133.33582647]
[1728342666551,3.21e-05,145.04,145.03,133.3356557]
[1728342666746,3.21e-05,145.04,145.03,130.922964]
[1728342666945,3.21e-05,145.04,145.03,107.02059]
[1728342667146,3.21e-05,145.04,145.03,106.8951]
[1728342667373,3.21e-05,145.04,145.03,88.27361998]
[1728342667573,3.21e-05,145.04,145.03,30.0]
[1728342667758,3.21e-05,145.04,145.03,36.8951]
[1728342668275,3.21e-05,145.04,145.03,6.8951]
[1728342668881,3.21e-05,145.04,145.02,8.2742821]
[1728342669075,3.21e-05,145.04,145.03,36.8951]
[1728342669254,3.21e-05,145.04,145.03,6.8951]
[1728342669575,3.21e-05,145.04,145.02,6.8955]
[1728342669776,3.21e-05,145.04,145.01,17.2394]
[1728342669777,3.21e-05,145.04,145.03,76.8951]
[1728342670075,3.21e-05,145.04,145.03,158.85008319]
[1728342670865,3.21e-05,145.04,145.03,182.87794719]
[1728342673065,17.3912321,145.18,145.14,6.8895]
[1728342673247,17.3912321,145.18,145.13,17.225]
[1728342673451,17.3912321,145.18,145.14,6.8898]
[1728342673779,24.2793321,145.18,145.13,24.1153]
[1728342673979,24.2793321,145.18,145.08,8.55524583]
[1728342673980,69.34621529,145.18,145.08,8.55524583]
[1728342674148,69.34621529,145.18,145.09,1.37817391]
[1728342674353,69.34621529,145.18,145.1,50.0]
[1728342674679,6.8891,145.16,145.11,6.8912]
[1728342674975,69.34621529,145.18,145.1,50.0]
[1728342675162,6.8885,145.17,145.12,24.1177]
[1728342675550,69.34621529,145.18,145.12,17.227]
[1728342675751,24.2795321,145.18,145.13,6.8902]
[1728342675971,17.3912321,145.18,145.15,6.8894]
[1728342676670,17.3912321,145.18,145.17,6.8884]
[1728342676855,17.3912321,145.18,145.17,8.265974]
[1728342677281,0.8188321,145.18,145.17,6.8884]
[1728342678105,0.8188321,145.18,145.16,24.1105]
[1728342678394,0.8188321,145.18,145.17,6.8884]
[1728342678980,0.8188321,145.18,145.17,8.26580227]
[1728342679378,0.8188321,145.18,145.17,6.8884]
[1728342679805,0.8188321,145.18,145.17,8.26581159]
[1728342680413,0.8188321,145.18,145.17,18.42223596]
[1728342680580,0.8188321,145.18,145.17,6.8884]
[1728342681230,0.8188321,145.18,145.17,8.26565368]
[1728342681530,0.8188321,145.18,145.17,6.8884]
[1728342682516,0.8188321,145.18,145.17,36.8884]
[1728342683040,0.8188321,145.18,145.17,30.0]
[1728342683227,6.8887,145.17,145.13,24.1153]
[1728342683427,6.8887,145.17,145.1,32.67451505]
[1728342683428,0.12549,145.17,145.1,32.67451505]
[1728342683634,31.90287479,145.18,145.1,67.229]
[1728342683818,31.90287479,145.18,145.08,50.0]
[1728342684341,31.90287479,145.18,145.13,6.8902]
[1728342684526,6.8885,145.17,145.13,6.8902]
[1728342685114,6.8893,145.16,145.12,24.1173]
[1728342685548,6.8899,145.14,145.09,24.1217]
[1728342685711,6.8904,145.13,145.09,17.2299]
[1728342685920,22.3789,145.13,145.09,17.2299]
[1728342686245,22.3789,145.13,145.09,24.122]
[1728342686431,22.3789,145.13,145.1,30.0]
[1728342686621,15.4885,145.13,145.1,30.0]
[1728342687145,6.8913,145.11,145.1,30.0]
[1728342687341,6.8913,145.11,145.08,30.0]
[1728342687523,22.3789,145.13,145.08,38.27088122]
[1728342687843,15.4885,145.13,145.08,30.0]
[1728342688135,15.4885,145.13,145.07,6.8927]
[1728342688335,15.4885,145.13,145.07,8.27108161]
[1728342688719,7.14188,145.12,145.07,6.8931]
[1728342689835,7.14188,145.12,145.08,6.8927]
[1728342690039,67.3777459,145.13,145.07,1.37855475]
[1728342690344,67.3777459,145.13,145.1,6.8917]
[1728342690723,15.4885,145.13,145.12,6.8908]
[1728342691121,21.5453,145.18,145.16,6.8885]
[1728342691450,21.5453,145.18,145.17,6.8884]
[1728342691948,21.5453,145.18,145.15,17.2225]
[1728342692122,21.5453,145.18,145.16,6.8888]
[1728342692927,15.3089,145.18,145.17,6.8884]
[1728342693145,12.83016625,145.23,145.16,85.82240538]
[1728342693347,12.83016625,145.23,145.21,6.8861]
[1728342693735,12.83016625,145.23,145.22,6.8861]
[1728342694329,12.83016625,145.23,145.21,6.8864]
[1728342694750,12.83016625,145.23,145.17,17.2206]
[1728342694952,19.71576625,145.23,145.19,6.8873]
[1728342695133,19.71576625,145.23,145.17,17.2206]
[1728342695345,6.8866,145.21,145.17,17.2206]
[1728342695639,6.8866,145.21,145.18,30.0]
[1728342695844,7.01159,145.22,145.18,30.0]
[1728342696265,7.01159,145.22,145.17,24.1089]
[1728342696769,7.01159,145.22,145.16,6.8889]
[1728342696770,6.8869,145.21,145.16,6.8889]
[1728342696979,7.01159,145.22,145.17,6.8884]
[1728342697359,7.01159,145.22,145.18,6.8879]
[1728342697947,25.75146625,145.23,145.19,6.8874]
[1728342699172,18.86586625,145.23,145.2,6.8869]
[1728342701855,12.83016625,145.23,145.21,8.2637824]
[1728342702369,12.83016625,145.23,145.22,6.8861]
[1728342702571,57.9133459,145.28,145.24,6.885]
[1728342702572,28.7851,145.28,145.24,6.885]
[1728342702778,28.7851,145.28,145.23,17.2138]
[1728342702779,21.9018,145.28,145.23,17.2138]
[1728342703156,21.9018,145.28,145.23,24.0993]
[1728342703472,21.9018,145.28,145.27,6.8837]
[1728342703674,15.8777,145.28,145.27,6.8837]
[1728342704656,15.8777,145.28,145.25,17.2109]
[1728342704847,15.8777,145.28,145.27,6.8837]
[1728342706060,15.8777,145.28,145.25,17.2109]
[1728342706273,15.8777,145.28,145.26,8.26069211]
[1728342706575,13.4943,145.32,145.28,6.8832]
[1728342707888,16.8332321,145.33,145.29,1.37649256]
[1728342708069,23.7141321,145.33,145.29,8.25909256]
[1728342708576,23.7141321,145.33,145.29,1.37649256]
[1728342708798,16.8332321,145.33,145.3,1.37633741]
[1728342709361,0.8188321,145.33,145.32,6.8813]
[1728342709672,0.8188321,145.33,145.32,8.25732943]
[1728342709868,0.8188321,145.33,145.32,56.8813]
[1728342710170,0.8188321,145.33,145.32,36.8813]
[1728342711093,0.8188321,145.33,145.32,38.25719134]
[1728342711602,0.8188321,145.33,145.32,88.25719134]
[1728342712995,0.8188321,145.33,145.32,86.8813]
[1728342713194,0.8188321,145.33,145.32,30.0]
[1728342713495,0.8188321,145.33,145.32,80.0]
[1728342713693,0.8188321,145.33,145.32,86.8813]
[1728342713897,0.8188321,145.33,145.32,118.74608873]
[1728342714209,0.8188321,145.33,145.32,120.12144194]
[1728342714401,16.1824,145.44,145.38,50.0]
[1728342714601,65.8868057,145.6,145.38,50.0]
[1728342714602,0.8188321,145.47,145.38,50.0]
[1728342714895,0.8188321,145.47,145.44,6.8755]
[1728342715103,0.8188321,145.47,145.4,50.0]
[1728342715104,0.8188321,145.47,145.43,24.0655]
[1728342715282,0.8188321,145.47,145.44,8.25042602]
[1728342715601,7.6931321,145.47,145.43,24.0658]
[1728342715804,7.6931321,145.47,145.43,17.1898]
[1728342716386,0.8188321,145.47,145.43,17.1898]
[1728342716991,6.8748,145.46,145.41,15.41320639]
[1728342717600,6.8748,145.46,145.41,6.877]
[1728342717904,6.8748,145.46,145.42,30.0]
[1728342718406,6.8752,145.45,145.42,30.0]
[1728342718810,0.8188321,145.47,145.42,30.0]
[1728342718982,0.12549,145.46,145.36,17.1976]
[1728342719189,6.8765,145.43,145.38,6.8781]
[1728342719391,6.8766,145.42,145.37,36.8787]
[1728342719690,0.25098,145.46,145.37,30.0]
[1728342719887,0.12549,145.46,145.36,24.0769]
[1728342720098,17.1886,145.45,145.35,0.02]
[1728342720299,17.1886,145.45,145.36,6.8794]
[1728342720483,6.8772,145.41,145.36,6.8794]
[1728342720686,6.8766,145.42,145.37,8.25444889]
[1728342721002,0.8188321,145.47,145.36,50.0]
[1728342721182,6.8762,145.43,145.38,24.0734]
[1728342721697,0.8188321,145.47,145.37,6.8789]
[1728342721895,6.8771,145.41,145.37,6.8789]
[1728342722089,6.8775,145.4,145.35,24.099]
[1728342722312,6.8768,145.42,145.37,6.8788]
[1728342722488,6.8768,145.42,145.38,1.37544458]
[1728342722690,6.8753,145.45,145.4,6.8774]
[1728342722884,6.8753,145.45,145.39,17.1944]
[1728342723187,6.8747,145.46,145.41,8.25221318]
[1728342724111,6.8752,145.45,145.41,6.8769]
[1728342724302,0.8188321,145.47,145.39,17.1944]
[1728342724510,6.8762,145.43,145.39,24.0723]
[1728342724817,6.8771,145.42,145.37,6.8786]
[1728342725194,17.1884,145.45,145.36,25.10950951]
[1728342725399,6.8772,145.41,145.36,24.0773]
[1728342726326,6.8772,145.41,145.37,8.25437045]
[1728342726639,0.12549,145.44,145.36,17.198]
[1728342726811,6.8779,145.4,145.36,17.198]
[1728342727123,6.8771,145.41,145.37,1.37559929]
[1728342727335,6.8767,145.42,145.38,6.8783]
[1728342727502,6.8767,145.42,145.39,1.37545511]
[1728342727902,6.8762,145.43,145.39,8.25335511]
[1728342728127,6.8758,145.44,145.39,8.25335511]
[1728342728512,6.8761,145.43,145.39,8.25335511]
[1728342728719,6.8772,145.41,145.36,6.8791]
[1728342729025,15.3394,145.43,145.32,17.2026]
[1728342729403,0.25098,145.42,145.32,17.2026]
[1728342729844,0.25098,145.42,145.29,1.05269547]
[1728342730036,6.8793,145.37,145.32,6.8812]
[1728342730401,6.8793,145.37,145.33,6.8808]
[1728342730632,6.8793,145.37,145.32,6.881]
[1728342730928,6.8817,145.32,145.29,0.02]
[1728342731430,6.8824,145.3,145.25,24.1154]
[1728342732006,6.8814,145.32,145.27,6.8836]
[1728342732210,17.1992,145.36,145.25,17.2309]
[1728342732419,6.8821,145.31,145.26,6.8838]
[1728342732926,6.8821,145.31,145.27,6.8836]
[1728342733233,6.8814,145.32,145.27,6.8836]
[1728342734746,16.2967,145.38,145.28,50.0]
[1728342734952,254.2,145.61,145.38,0.12549]
[1728342735125,5.22105079,145.6,145.5,31.79631071]
[1728342735325,5.22105079,145.6,145.58,15.39454322]
[1728342735523,0.8188321,145.62,145.58,30.0]
[1728342735730,0.8188321,145.62,145.59,6.8685]
[1728342735930,0.8188321,145.62,145.61,6.8676]
[1728342736144,0.8188321,145.62,145.59,17.1707]
[1728342736345,0.8188321,145.62,145.6,6.868]
[1728342736725,0.8188321,145.62,145.59,24.0391]
[1728342736951,0.8188321,145.62,145.6,6.868]
[1728342737751,0.8188321,145.62,145.59,17.1707]
[1728342738546,0.8188321,145.62,145.58,16.59022291]
[1728342738547,0.8188321,145.62,145.58,1.19494721]
[1728342739147,7.6860321,145.62,145.58,1.19494721]
[1728342740233,6.8677,145.61,145.58,1.19494721]
[1728342740848,0.8188321,145.62,145.58,1.19494721]
[1728342740849,6.8682,145.6,145.58,1.19494721]
[1728342741035,6.8682,145.6,145.55,17.1757]
[1728342741455,0.12549,145.61,145.51,67.1803]
[1728342742042,0.12549,145.61,145.56,6.8699]
[1728342742349,0.12549,145.61,145.54,17.1769]
[1728342742350,6.8678,145.61,145.54,24.0474]
[1728342742657,6.8691,145.58,145.51,8.53054549]
[1728342742861,6.8685,145.6,145.53,67.1781]
[1728342743045,6.8686,145.59,145.54,6.8708]
[1728342743250,6.8674,145.62,145.56,6.8696]
[1728342743464,6.8674,145.62,145.57,1.37366267]
[1728342743659,6.8674,145.62,145.56,6.8696]
[1728342743842,6.8674,145.62,145.54,50.0]
[1728342743843,0.8188321,145.62,145.54,50.0]
[1728342744165,0.8188321,145.62,145.56,24.044]
[1728342744461,0.8188321,145.62,145.53,6.8713]